fUSD/lending_fUSD_20250103
["ID","MTS","AMOUNT","RATE_DAILY","PERIOD"]
[347596142,1735937446707,-500.0,0.00012167,2]
[347596143,1735937446715,-500.0,0.00012167,2]
[347596144,1735937446724,-500.0,0.00012167,2]
[347596145,1735937446733,-42.08077197,0.00012167,2]
[347596146,1735937446746,-457.91922803,0.00012167,2]
[347596147,1735937446755,-500.0,0.00012167,2]
[347596148,1735937446765,-872.03,0.00012167,2]
[347596149,1735937446774,-424.59,0.00012167,2]
[347596150,1735937446783,-500.0,0.00012167,2]
[347596151,1735937446792,-500.0,0.00012167,2]
[347596152,1735937446801,-581.7,0.00012167,2]
[347596153,1735937446809,-500.0,0.00012167,2]
[347596154,1735937446820,-500.0,0.00012167,2]
[347596155,1735937446829,-835.25,0.00012167,2]
[347596156,1735937446838,-1894.64,0.00012167,2]
[347596157,1735937446847,-500.0,0.00012167,2]
[347596158,1735937446855,-595.58,0.00012167,2]
[347596159,1735937446865,-500.0,0.00012167,2]
[347596160,1735937446874,-453.38,0.00012167,2]
[347596161,1735937446883,-500.0,0.00012167,2]
[347596162,1735937446894,-500.0,0.00012167,2]
[347596163,1735937446903,-500.0,0.00012167,2]
[347596164,1735937446911,-403.02,0.00012167,2]
[347596165,1735937446921,-500.0,0.00012167,2]
[347596166,1735937446929,-489.78,0.00012167,2]
[347596167,1735937446938,-500.0,0.00012167,2]
[347596168,1735937446947,-808.46,0.00012167,2]
[347596169,1735937446956,-518.42,0.00012167,2]
[347596170,1735937446965,-500.0,0.00012167,2]
[347596171,1735937446975,-632.34,0.00012167,2]
[347596172,1735937446985,-500.0,0.00012167,2]
[347596173,1735937446994,-606.36,0.00012167,2]
[347596174,1735937447003,-500.0,0.00012167,2]
[347596175,1735937447013,-500.0,0.00012167,2]
[347596176,1735937447022,-500.0,0.00012167,2]
[347596177,1735937447031,-777.9,0.00012167,2]
[347596178,1735937447040,-500.0,0.00012167,2]
[347596179,1735937447049,-500.0,0.00012167,2]
[347596180,1735937447058,-500.0,0.00012167,2]
[347596181,1735937447067,-500.0,0.00012167,2]
[347596182,1735937447076,-500.0,0.00012167,2]
[347596183,1735937447085,-500.0,0.00012167,2]
[347596184,1735937447094,-500.0,0.00012167,2]
[347596185,1735937447103,-500.0,0.00012167,2]
[347596186,1735937447117,-421.88,0.00012167,2]
[347596187,1735937447126,-500.0,0.00012167,2]
[347596188,1735937447135,-500.0,0.00012167,2]
[347596189,1735937447144,-500.0,0.00012167,2]
[347596190,1735937447154,-500.0,0.00012167,2]
[347596191,1735937447163,-501.78,0.00012167,2]
[347596192,1735937447172,-500.0,0.00012167,2]
[347596193,1735937447182,-182.87,0.00012167,2]
[347596194,1735937447191,-500.0,0.00012167,2]
[347596195,1735937447200,-500.0,0.00012167,2]
[347596196,1735937447209,-500.0,0.00012167,2]
[347596197,1735937447218,-638.31,0.00012167,2]
[347596198,1735937447227,-500.0,0.00012167,2]
[347596199,1735937447235,-1310.55,0.00012167,2]
[347596200,1735937447247,-500.0,0.00012167,2]
[347596201,1735937447256,-500.0,0.00012167,2]
[347596202,1735937447266,-500.0,0.00012167,2]
[347596203,1735937447275,-809.75,0.00012167,2]
[347596204,1735937447284,-500.0,0.00012167,2]
[347596205,1735937447293,-631.05,0.00012167,2]
[347596206,1735937447302,-427.49,0.00012167,2]
[347596207,1735937447311,-510.28,0.00012167,2]
[347596208,1735937447320,-500.0,0.00012167,2]
[347596209,1735937447329,-500.0,0.00012167,2]
[347596210,1735937447338,-500.0,0.00012167,2]
[347596211,1735937447347,-200.83711859,0.00012167,2]
[347596212,1735937447356,-2587.43,0.00012167,2]
[347596213,1735937447365,-500.0,0.00012167,2]
[347596214,1735937447373,-500.0,0.00012168,2]
[347596215,1735937447382,-500.0,0.00012168,2]
[347596216,1735937447391,-376.96,0.00012168,2]
[347596217,1735937447400,-170.83,0.00012168,2]
[347596218,1735937447409,-343.65,0.00012168,2]
[347596219,1735937447418,-500.0,0.00012168,2]
[347596220,1735937447427,-500.0,0.00012168,2]
[347596221,1735937447436,-500.0,0.00012168,2]
[347596222,1735937447445,-500.0,0.00012168,2]
[347596223,1735937447454,-500.0,0.00012168,2]
[347596224,1735937447463,-500.0,0.00012168,2]
[347596225,1735937447472,-504.12,0.00012168,2]
[347596226,1735937447481,-500.0,0.00012168,2]
[347596227,1735937447490,-500.0,0.00012168,2]
[347596228,1735937447499,-500.0,0.00012168,2]
[347596229,1735937447508,-500.0,0.00012168,2]
[347596230,1735937447517,-500.0,0.00012168,2]
[347596231,1735937447526,-496.65475623,0.00012168,2]
[347596232,1735937447535,-500.0,0.00012168,2]
[347596233,1735937447544,-500.0,0.00012168,2]
[347596234,1735937447553,-500.0,0.00012168,2]
[347596235,1735937447562,-500.0,0.00012168,2]
[347596236,1735937447571,-500.0,0.00012168,2]
[347596237,1735937447580,-500.0,0.00012168,2]
[347596238,1735937447589,-500.0,0.00012168,2]
[347596239,1735937447598,-500.0,0.00012168,2]
[347596240,1735937447607,-500.0,0.00012168,2]
[347596241,1735937447616,-338.0,0.00012168,2]
[347596242,1735937447625,-500.0,0.00012168,2]
[347596243,1735937447634,-631.57,0.00012168,2]
[347596244,1735937447643,-523.57,0.00012168,2]
[347596245,1735937447652,-352.83,0.00012168,2]
[347596246,1735937447661,-598.86,0.00012168,2]
[347596247,1735937447670,-295.3,0.00012168,2]
[347596248,1735937447679,-318.61,0.00012168,2]
[347596249,1735937447688,-500.0,0.00012168,2]
[347596250,1735937447697,-500.0,0.00012168,2]
[347596251,1735937447707,-500.0,0.00012168,2]
[347596252,1735937447716,-500.0,0.00012168,2]
[347596253,1735937447725,-496.94,0.00012168,2]
[347596254,1735937447734,-613.27,0.00012168,2]
[347596255,1735937447742,-500.0,0.00012168,2]
[347596256,1735937447752,-500.0,0.00012168,2]
[347596257,1735937447761,-500.0,0.00012168,2]
[347596258,1735937447770,-500.0,0.00012168,2]
[347596259,1735937447779,-467.67,0.00012168,2]
[347596260,1735937447788,-500.0,0.00012168,2]
[347596261,1735937447798,-500.0,0.00012168,2]
[347596262,1735937447807,-500.0,0.00012168,2]
[347596263,1735937447817,-500.0,0.00012168,2]
[347596264,1735937447827,-500.0,0.00012168,2]
[347596265,1735937447836,-556.54,0.00012168,2]
[347596266,1735937447845,-500.0,0.00012168,2]
[347596267,1735937447854,-509.35,0.00012168,2]
[347596268,1735937447864,-205.94,0.00012168,2]
[347596269,1735937447873,-492.16,0.00012168,2]
[347596270,1735937447883,-500.0,0.00012168,2]
[347596271,1735937447894,-500.0,0.00012168,2]
[347596272,1735937447904,-500.0,0.00012168,2]
[347596273,1735937447913,-500.0,0.00012168,2]
[347596274,1735937447923,-500.0,0.00012168,2]
[347596275,1735937447932,-500.0,0.00012168,2]
[347596276,1735937447942,-500.0,0.00012168,2]
[347596277,1735937447950,-500.0,0.00012168,2]
[347596278,1735937447959,-500.0,0.00012168,2]
[347596279,1735937447968,-637.53,0.00012168,2]
[347596280,1735937447978,-4950.25608447,0.00012168,2]
[347596281,1735937447998,-49.74391553,0.00012168,2]
[347596282,1735937448007,-500.0,0.00012168,2]
[347596283,1735937448017,-500.0,0.00012168,2]
[347596284,1735937448028,-500.0,0.00012168,2]
[347596285,1735937448038,-500.0,0.00012168,2]
[347596286,1735937448047,-500.0,0.00012168,2]
[347596287,1735937448056,-500.0,0.00012168,2]
[347596288,1735937448066,-500.0,0.00012168,2]
[347596289,1735937448075,-500.0,0.00012168,2]
[347596290,1735937448084,-500.0,0.00012168,2]
[347596291,1735937448094,-500.0,0.00012168,2]
[347596292,1735937448103,-500.0,0.00012168,2]
[347596293,1735937448113,-500.0,0.00012168,2]
[347596294,1735937448122,-500.0,0.00012168,2]
[347596295,1735937448285,-706.46,0.00012168,2]
[347596296,1735937448295,-500.0,0.00012168,2]
[347596297,1735937448304,-500.0,0.00012168,2]
[347596298,1735937448313,-500.0,0.00012168,2]
[347596299,1735937448322,-500.0,0.00012168,2]
[347596300,1735937448331,-500.0,0.00012168,2]
[347596301,1735937448340,-606.55,0.00012168,2]
[347596302,1735937448349,-500.0,0.00012168,2]
[347596303,1735937448358,-500.0,0.00012168,2]
[347596304,1735937448368,-337.18,0.00012168,2]
[347596305,1735937448377,-500.0,0.00012168,2]
[347596306,1735937448386,-500.0,0.00012168,2]
[347596307,1735937448395,-500.0,0.00012168,2]
[347596308,1735937448404,-500.0,0.00012168,2]
[347596309,1735937448413,-564.95,0.00012168,2]
[347596310,1735937448422,-500.0,0.00012168,2]
[347596311,1735937448432,-500.0,0.00012168,2]
[347596312,1735937448442,-500.0,0.00012168,2]
[347596313,1735937448451,-500.0,0.00012168,2]
[347596314,1735937448460,-500.0,0.00012168,2]
[347596315,1735937448469,-500.0,0.00012168,2]
[347596316,1735937448479,-500.0,0.00012168,2]
[347596317,1735937448488,-500.0,0.00012168,2]
[347596318,1735937448497,-500.0,0.00012168,2]
[347596319,1735937448507,-500.0,0.00012168,2]
[347596320,1735937448518,-500.0,0.00012168,2]
[347596321,1735937448527,-500.0,0.00012168,2]
[347596322,1735937448537,-500.0,0.00012168,2]
[347596323,1735937448546,-500.0,0.00012168,2]
[347596324,1735937448555,-342.42,0.00012168,2]
[347596325,1735937448565,-500.0,0.00012168,2]
[347596326,1735937448574,-500.0,0.00012168,2]
[347596327,1735937448583,-500.0,0.00012168,2]
[347596328,1735937448592,-510.11,0.00012168,2]
[347596329,1735937448602,-552.94,0.00012168,2]
[347596330,1735937448611,-500.0,0.00012168,2]
[347596331,1735937448620,-500.0,0.00012168,2]
[347596332,1735937448629,-500.0,0.00012168,2]
[347596333,1735937448638,-500.0,0.00012168,2]
[347596334,1735937448647,-159.66065547,0.00012168,2]
[347596335,1735937448660,-340.33934453,0.00012168,2]
[347596336,1735937448669,-500.0,0.00012168,2]
[347596337,1735937448678,-500.0,0.00012168,2]
[347596338,1735937448687,-500.0,0.00012168,2]
[347596339,1735937448697,-518.9,0.00012168,2]
[347596340,1735937448706,-500.0,0.00012168,2]
[347596341,1735937448715,-500.0,0.00012168,2]
[347596342,1735937448724,-500.0,0.00012168,2]
[347596343,1735937448732,-500.0,0.00012168,2]
[347596344,1735937448741,-500.0,0.00012168,2]
[347596345,1735937448750,-500.0,0.00012168,2]
[347596346,1735937448759,-500.0,0.00012168,2]
[347596347,1735937448769,-500.0,0.00012168,2]
[347596348,1735937448778,-500.0,0.00012168,2]
[347596349,1735937448787,-682.41,0.00012168,2]
[347596350,1735937448796,-500.0,0.00012168,2]
[347596351,1735937448805,-304.82,0.00012168,2]
[347596352,1735937448815,-247.85,0.00012168,2]
[347596353,1735937448826,-500.0,0.00012168,2]
[347596354,1735937448835,-500.0,0.00012168,2]
[347596355,1735937448844,-500.0,0.00012168,2]
[347596356,1735937448853,-500.0,0.00012168,2]
[347596357,1735937448864,-500.0,0.00012168,2]
[347596358,1735937448873,-500.0,0.00012168,2]
[347596359,1735937448882,-500.0,0.00012168,2]
[347596360,1735937448892,-500.0,0.00012168,2]
[347596361,1735937448903,-500.0,0.00012168,2]
[347596362,1735937448912,-500.0,0.00012168,2]
[347596363,1735937448921,-625.09,0.00012168,2]
[347596364,1735937448930,-500.0,0.00012168,2]
[347596365,1735937448939,-500.0,0.00012168,2]
[347596366,1735937448948,-500.0,0.00012168,2]
[347596367,1735937448957,-276.59,0.00012168,2]
[347596368,1735937448966,-502.33,0.00012168,2]
[347596369,1735937448976,-624.78118712,0.00012168,2]
[347596370,1735937448985,-500.0,0.00012168,2]
[347596371,1735937448995,-500.0,0.00012168,2]
[347596372,1735937449005,-186.23346614,0.00012168,2]
[347596373,1735937449015,-500.0,0.00012168,2]
[347596374,1735937449026,-500.0,0.00012168,2]
[347596375,1735937449035,-500.0,0.00012168,2]
[347596376,1735937449045,-71.09428718,0.00012168,2]
[347596377,1735937449071,-359.28571282,0.00012168,2]
[347596378,1735937449080,-500.0,0.00012168,2]
[347596379,1735937449089,-500.0,0.00012168,2]
[347596380,1735937449098,-500.0,0.00012168,2]
[347596381,1735937449108,-500.0,0.00012168,2]
[347596382,1735937449117,-500.0,0.00012168,2]
[347596383,1735937449127,-500.0,0.00012168,2]
[347596384,1735937449136,-500.0,0.00012168,2]
[347596385,1735937449145,-500.0,0.00012168,2]
[347596386,1735937449155,-500.0,0.00012168,2]
[347596387,1735937449164,-500.0,0.00012168,2]
[347596388,1735937449173,-500.0,0.00012168,2]
[347596389,1735937449183,-500.0,0.00012168,2]
[347596390,1735937449192,-391.26,0.00012168,2]
[347596391,1735937449202,-500.0,0.00012168,2]
[347596392,1735937449211,-500.0,0.00012168,2]
[347596393,1735937449220,-250.47941875,0.00012168,2]
[347596394,1735937449229,-500.0,0.00012168,2]
[347596395,1735937449238,-500.0,0.00012168,2]
[347596396,1735937449247,-510.56,0.00012168,2]
[347596397,1735937449256,-500.0,0.00012168,2]
[347596398,1735937449266,-500.0,0.00012168,2]
[347596399,1735937449275,-500.0,0.00012168,2]
[347596400,1735937449285,-541.59,0.00012168,2]
[347596401,1735937449294,-500.0,0.00012168,2]
[347596402,1735937449304,-500.0,0.00012168,2]
[347596403,1735937449313,-500.0,0.00012168,2]
[347596404,1735937449322,-500.0,0.00012168,2]
[347596405,1735937449331,-500.0,0.00012168,2]
[347596406,1735937449341,-500.0,0.00012168,2]
[347596407,1735937449352,-500.0,0.00012168,2]
[347596408,1735937449361,-500.0,0.00012168,2]
[347596409,1735937449372,-500.0,0.00012168,2]
[347596410,1735937449381,-500.0,0.00012168,2]
[347596411,1735937449391,-351.33,0.00012168,2]
[347596412,1735937449401,-500.0,0.00012168,2]
[347596413,1735937449410,-500.0,0.00012168,2]
[347596414,1735937449420,-500.0,0.00012168,2]
[347596415,1735937449429,-500.0,0.00012168,2]
[347596416,1735937449439,-500.0,0.00012168,2]
[347596417,1735937449448,-500.0,0.00012168,2]
[347596418,1735937449458,-500.0,0.00012168,2]
[347596419,1735937449467,-500.0,0.00012168,2]
[347596420,1735937449476,-500.0,0.00012168,2]
[347596421,1735937449486,-500.0,0.00012168,2]
[347596422,1735937449495,-500.0,0.00012168,2]
[347596423,1735937449505,-500.0,0.00012168,2]
[347596424,1735937449515,-563.89,0.00012168,2]
[347596425,1735937449524,-500.0,0.00012168,2]
[347596426,1735937449533,-500.0,0.00012168,2]
[347596427,1735937449543,-500.0,0.00012168,2]
[347596428,1735937449552,-500.0,0.00012168,2]
[347596429,1735937449564,-500.0,0.00012168,2]
[347596430,1735937449574,-286.89,0.00012168,2]
[347596431,1735937449583,-500.0,0.00012168,2]
[347596432,1735937449593,-1731.49,0.00012168,2]
[347596433,1735937449603,-500.0,0.00012168,2]
[347596434,1735937449612,-500.0,0.00012168,2]
[347596435,1735937449620,-500.0,0.00012168,2]
[347596436,1735937449629,-527.16,0.00012168,2]
[347596437,1735937449638,-500.0,0.00012168,2]
[347596438,1735937449647,-645.36,0.00012168,2]
[347596439,1735937449656,-500.0,0.00012168,2]
[347596440,1735937449666,-500.0,0.00012168,2]
[347596441,1735937449676,-500.0,0.00012168,2]
[347596442,1735937449688,-500.0,0.00012168,2]
[347596443,1735937449697,-500.0,0.00012168,2]
[347596444,1735937449706,-500.0,0.00012168,2]
[347596445,1735937449715,-500.0,0.00012168,2]
[347596446,1735937449725,-323.78,0.00012168,2]
[347596447,1735937449734,-160.28,0.00012168,2]
[347596448,1735937449744,-500.0,0.00012168,2]
[347596449,1735937449755,-500.0,0.00012168,2]
[347596450,1735937449766,-1393.7,0.00012168,2]
[347596451,1735937449774,-500.0,0.00012168,2]
[347596452,1735937449783,-500.0,0.00012168,2]
[347596453,1735937449793,-451.67,0.00012168,2]
[347596454,1735937449802,-1362.12,0.00012168,2]
[347596455,1735937449811,-500.0,0.00012168,2]
[347596456,1735937449822,-450.15,0.00012168,2]
[347596457,1735937449831,-617.18,0.00012168,2]
[347596458,1735937449841,-500.0,0.00012168,2]
[347596459,1735937449850,-500.0,0.00012168,2]
[347596460,1735937449859,-500.0,0.00012168,2]
[347596461,1735937449870,-500.0,0.00012168,2]
[347596462,1735937449880,-1266.0,0.00012189,2]
[347596463,1735937449890,-2014.0,0.00012189,2]
[347596464,1735937449900,-634.0,0.00012189,2]
[347596465,1735937449910,-150.0,0.00012189,2]
[347596466,1735937449920,-566.0,0.00012189,2]
[347596467,1735937449929,-1859.0,0.00012189,2]
[347596468,1735937449937,-1258.0,0.00012189,2]
[347596469,1735937449946,-3775.0,0.00012189,2]
[347596470,1735937449955,-819.0,0.00012189,2]
[347596471,1735937449964,-920.0,0.00012189,2]
[347596472,1735937449973,-3721.0,0.00012189,2]
[347596473,1735937449984,-536.0,0.00012189,2]
[347596474,1735937449993,-1172.0,0.00012189,2]
[347596475,1735937450002,-172.14,0.00012189,2]
[347596476,1735937450011,-9605.0,0.00012189,2]
[347596477,1735937450022,-3893.0,0.00012189,2]
[347596478,1735937450031,-150.0,0.00012189,2]
[347596479,1735937450039,-202.7,0.000122,2]
[347596480,1735937450048,-166.21275412,0.000122,2]
[347596481,1735937450058,-170.11631009,0.000122,2]
[347596482,1735937450066,-271.60751401,0.000122,2]
[347596483,1735937450075,-200.27265384,0.000122,2]
[347596484,1735937450084,-5000.0,0.00012248,3]
[347596485,1735937450093,-500.0,0.00012272,2]
[347596486,1735937450102,-500.0,0.00012272,2]
[347596487,1735937450112,-500.0,0.00012272,2]
[347596488,1735937450121,-500.0,0.00012272,2]
[347596489,1735937450131,-919.64,0.00012272,2]
[347596490,1735937450140,-924.72,0.00012272,2]
[347596491,1735937450149,-657.8,0.00012272,2]
[347596492,1735937450158,-2100.01,0.00012272,2]
[347596493,1735937450167,-1223.31,0.00012272,2]
[347596494,1735937450177,-3174.74,0.00012272,2]
[347596495,1735937450186,-1166.65,0.00012272,2]
[347596496,1735937450196,-888.42,0.00012273,2]
[347596497,1735937450205,-680.75,0.00012273,2]
[347596498,1735937450215,-2079.63,0.00012273,2]
[347596499,1735937450224,-899.67,0.00012273,2]
[347596500,1735937450233,-2801.44,0.00012273,2]
[347596501,1735937450242,-1198.77,0.00012273,2]
[347596502,1735937450251,-1548.47,0.00012273,2]
[347596503,1735937450260,-750.23,0.00012273,2]
[347596504,1735937450271,-558.34,0.00012273,2]
[347596505,1735937450281,-733.2,0.00012273,2]
[347596506,1735937450290,-1707.2,0.00012273,2]
[347596507,1735937450299,-198.51,0.00012273,2]
[347596508,1735937450308,-1031.57,0.00012273,2]
[347596509,1735937450317,-501.92,0.00012273,2]
[347596510,1735937450326,-500.0,0.00012273,2]
[347596511,1735937450335,-500.0,0.00012273,2]
[347596512,1735937450344,-500.0,0.00012273,2]
[347596513,1735937450353,-500.0,0.00012273,2]
[347596514,1735937450363,-500.0,0.00012273,2]
[347596515,1735937450372,-500.0,0.00012273,2]
[347596516,1735937450382,-500.0,0.00012273,2]
[347596517,1735937450392,-1014.88,0.00012273,2]
[347596518,1735937450401,-859.28,0.00012273,2]
[347596519,1735937450411,-1421.24,0.00012273,2]
[347596520,1735937450420,-500.0,0.00012273,2]
[347596521,1735937450429,-4539.81,0.00012273,2]
[347596522,1735937450438,-500.0,0.00012273,2]
[347596523,1735937450448,-649.41,0.00012273,2]
[347596524,1735937450458,-2833.5,0.00012273,2]
[347596525,1735937450467,-500.0,0.00012273,2]
[347596526,1735937450477,-500.0,0.00012273,2]
[347596527,1735937450487,-500.0,0.00012273,2]
[347596528,1735937450497,-1226.178158,0.00012292,2]
[347596529,1735937450506,-12678.1197659,0.00012292,2]
[347596530,1735937450517,-3720.5611152,0.00012292,2]
[347596531,1735937450526,-1000.0,0.00012296,2]
[347596532,1735937450535,-38255.7804541,0.000123,2]
[347596533,1735937450545,-38731.13919879,0.000123,2]
[347596534,1735937595436,100904.767132,0.0002,120]
[347596535,1735937703755,151.0,0.000123,30]
[347596537,1735938002891,152.0,0.000123,30]
[347596539,1735938252078,500.0,0.0002,120]
[347596540,1735938303385,152.0,0.000123,30]
[347596541,1735938552254,-483.39,9.215e-05,2]
[347596543,1735938603731,152.0,0.000123,30]
[347596544,1735938631781,-576.31,0.00010137,2]
[347596545,1735938631791,-200.0,0.0001064,2]
[347596546,1735938631800,-694.6893,0.00010699,2]
[347596547,1735938631836,-1016.4607,0.00010699,2]
[347596548,1735938631845,-250.0,0.00010728,2]
[347596549,1735938631854,-301.33,0.00010731,2]
[347596550,1735938631864,-300.0,0.000108,2]
[347596551,1735938631874,-2080.68910032,0.00010801,2]
[347596552,1735938631895,-26298.26089968,0.00010801,2]
[347596553,1735938631905,-166.51,0.00010898,2]
[347596554,1735938631915,-250.0,0.00010962,2]
[347596555,1735938631924,-679.9,0.00010968,2]
[347596556,1735938631935,-550.0,0.00011,2]
[347596557,1735938631945,-539.86,0.00011015,2]
[347596558,1735938631954,-150.0,0.00011047,2]
[347596559,1735938631964,-150.0,0.00011047,2]
[347596560,1735938631974,-1500.0,0.00011047,2]
[347596561,1735938631986,-1000.0,0.00011134,2]
[347596562,1735938631995,-400.0,0.00011142,2]
[347596563,1735938632005,-153.566766,0.00011159,2]
[347596564,1735938632016,-164.13,0.00011278,2]
[347596565,1735938632027,-483.39,0.00011479,2]
[347596566,1735938632037,-581.80405857,0.00011492,2]
[347596567,1735938632046,-2142.84,0.00011507,2]
[347596568,1735938632056,-295.304,0.0001168,2]
[347596569,1735938632067,-151.16,0.00011778,2]
[347596570,1735938632079,-1000.0,0.00011793,2]
[347596571,1735938632088,-497.2,0.00011793,2]
[347596572,1735938632098,-3862.3307,0.00011793,2]
[347596573,1735938632107,-2584.75310131,0.00011794,2]
[347596574,1735938632118,-4970.55531791,0.00011794,2]
[347596575,1735938632137,-443.95759487,0.00011794,2]
[347596576,1735938632149,-19694.71798591,0.00011794,2]
[347596577,1735938632159,-165.0,0.00011871,2]
[347596578,1735938632168,-500.0,0.00011892,2]
[347596579,1735938632180,-801.64,0.00011892,2]
[347596580,1735938632191,-500.0,0.00011892,2]
[347596581,1735938632201,-692.85,0.00011892,2]
[347596582,1735938632210,-2887.03,0.00011892,2]
[347596583,1735938632220,-500.0,0.00011892,2]
[347596584,1735938632230,-500.0,0.00011892,2]
[347596585,1735938632239,-519.41,0.00011892,2]
[347596586,1735938632248,-500.0,0.00011892,2]
[347596587,1735938632258,-909.52,0.00011892,2]
[347596588,1735938632267,-2223.53,0.00011892,2]
[347596589,1735938632277,-500.0,0.00011892,2]
[347596590,1735938632286,-500.0,0.00011892,2]
[347596591,1735938632296,-960.91,0.00011892,2]
[347596593,1735938632306,-500.0,0.00011892,2]
[347596595,1735938632316,-966.69,0.00011892,2]
[347596597,1735938632326,-663.95,0.00011892,2]
[347596598,1735938632335,-500.0,0.00011892,2]
[347596600,1735938632344,-911.73,0.00011892,2]
[347596602,1735938632354,-500.0,0.00011892,2]
[347596604,1735938632363,-696.62,0.00011892,2]
[347596606,1735938632373,-896.08,0.00011892,2]
[347596608,1735938632382,-500.0,0.00011892,2]
[347596610,1735938632391,-500.0,0.00011892,2]
[347596611,1735938632400,-500.0,0.00011892,2]
[347596612,1735938632409,-500.0,0.00011892,2]
[347596613,1735938632418,-500.0,0.00011892,2]
[347596614,1735938632427,-500.0,0.00011892,2]
[347596615,1735938632436,-500.0,0.00011892,2]
[347596616,1735938632446,-500.0,0.00011892,2]
[347596617,1735938632456,-500.0,0.00011892,2]
[347596618,1735938632465,-543.07,0.00011893,2]
[347596619,1735938632474,-500.0,0.00011893,2]
[347596620,1735938632483,-527.07015604,0.00011893,2]
[347596621,1735938632492,-521.44,0.00011893,2]
[347596622,1735938632501,-547.03,0.00011893,2]
[347596623,1735938632510,-500.0,0.00011893,2]
[347596624,1735938632518,-500.0,0.00011893,2]
[347596625,1735938632527,-500.0,0.00011893,2]
[347596626,1735938632536,-500.0,0.00011893,2]
[347596627,1735938632546,-500.0,0.00011893,2]
[347596628,1735938632555,-500.0,0.00011893,2]
[347596629,1735938632563,-500.0,0.00011893,2]
[347596631,1735938632572,-501.38,0.00011893,2]
[347596633,1735938632582,-607.54,0.00011893,2]
[347596635,1735938632592,-500.0,0.00011893,2]
[347596637,1735938632601,-500.0,0.00011893,2]
[347596639,1735938632610,-500.0,0.00011893,2]
[347596641,1735938632620,-500.0,0.00011893,2]
[347596643,1735938632629,-500.0,0.00011893,2]
[347596645,1735938632638,-500.0,0.00011893,2]
[347596647,1735938632647,-500.0,0.00011893,2]
[347596649,1735938632657,-500.0,0.00011893,2]
[347596651,1735938632666,-500.0,0.00011893,2]
[347596653,1735938632675,-500.0,0.00011893,2]
[347596655,1735938632684,-500.0,0.00011893,2]
[347596657,1735938632693,-500.0,0.00011893,2]
[347596659,1735938632702,-500.0,0.00011893,2]
[347596661,1735938632712,-500.0,0.00011893,2]
[347596662,1735938632721,-500.0,0.00011893,2]
[347596665,1735938632731,-500.0,0.00011893,2]
[347596667,1735938632741,-500.0,0.00011893,2]
[347596669,1735938632750,-5000.0,0.00011893,2]
[347596671,1735938632760,-500.0,0.00011893,2]
[347596672,1735938632769,-500.0,0.00011893,2]
[347596674,1735938632778,-500.0,0.00011893,2]
[347596705,1735938633060,-500.0,0.00011893,2]